fUSD/lending_fUSD_20250105
["ID","MTS","AMOUNT","RATE_DAILY","PERIOD"]
[347694303,1736070646147,-1639.50040074,8.421e-05,2]
[347694310,1736071483048,500.0,0.0002,120]
[347694311,1736071483310,500.0,0.0002,120]
[347694312,1736071483583,614.72,0.0002,120]
[347694316,1736071733617,206398.964153,6.881e-05,7]
[347694336,1736071832113,-21328.0,7.378e-05,2]
[347694338,1736071832215,-2572.0,7.378e-05,2]
[347694339,1736071832225,-250.0,7.503e-05,2]
[347694340,1736071832234,-1016.31,7.58e-05,2]
[347694341,1736071832245,-150.0,7.686e-05,2]
[347694342,1736071832255,-426.31,7.87e-05,2]
[347694343,1736071832264,-250.0,7.923e-05,2]
[347694344,1736071832275,-200.0,7.923e-05,2]
[347694345,1736071832285,-150.0,7.934e-05,2]
[347694346,1736071832294,-150.0,7.946e-05,2]
[347694347,1736071832303,-181.96627625,7.999e-05,2]
[347694348,1736071832312,-31668.83894699,8e-05,2]
[347694349,1736071832323,-64472.08433127,8e-05,2]
[347694350,1736071832355,-1105.50830077,8e-05,2]
[347694351,1736071833854,-557.45,7.377e-05,2]
[347694352,1736071833864,-212228.08415263,8e-05,2]
[347694353,1736071833876,-104598.83673115,8e-05,2]
[347694354,1736071833961,-2396.02317933,8e-05,2]
[347694356,1736071838095,-385.55744706,8e-05,2]
[347694357,1736071838107,-483.655,8e-05,2]
[347694358,1736071838117,-22323.91042253,8e-05,2]
[347694359,1736071838128,-11892.72271579,8e-05,2]
[347694360,1736071838139,-7214.41,8e-05,2]
[347694361,1736071838226,-482.715,8e-05,2]
[347694362,1736071838238,-313.92894987,8e-05,2]
[347694363,1736071838249,-750.17897989,8e-05,2]
[347694364,1736071838418,-417.98375549,8e-05,2]
[347694365,1736071838430,-872.38999999,8e-05,2]
[347694366,1736071838491,-482.66838073,8e-05,2]
[347694368,1736071838503,-6393.94999784,8e-05,2]
[347694370,1736071838514,-19544.48325836,8e-05,2]
[347694496,1736071840379,-4080.60302125,8e-05,2]
[347694500,1736071843262,-293400.0,8e-05,2]
[347694501,1736071843310,-21.0674554,8e-05,2]
[347694510,1736071846092,-587.80000244,8e-05,2]
[347694516,1736071846193,-12271.61156789,8e-05,2]
[347694517,1736071846227,-75090.67713976,8e-05,2]
[347694518,1736071846343,-626.98153394,8e-05,2]
[347694519,1736071846439,-488.745,8e-05,2]
[347694520,1736071846450,-3968.53502799,8e-05,2]
[347694585,1736072147402,1000.0,0.00022,120]
[347694706,1736072404210,500.0,0.0002,120]
[347694707,1736072404524,538.24,0.0002,120]
[347694715,1736072726051,1287.02,6.852e-05,2]
[347694718,1736072801510,200.0,6.84e-05,2]
[347694719,1736072826714,1324.97,6.843e-05,2]
[347694729,1736072971162,-278.1,7.318e-05,2]
[347694730,1736072971183,-1500.0,7.399e-05,2]
[347694731,1736072971203,-250.0,7.426e-05,2]
[347694732,1736072971224,-250.0,7.489e-05,2]
[347694733,1736072971245,-1750.92696,7.511e-05,2]
[347694734,1736072981748,200.0,6.86e-05,2]
[347694735,1736072985714,23900.0,6.86e-05,2]
[347694745,1736073032584,-585.55,7.511e-05,2]
[347694746,1736073032594,-1822.75,7.531e-05,2]
[347694747,1736073032603,-1423.68,7.575e-05,2]
[347694748,1736073032615,-150.0,7.619e-05,2]
[347694749,1736073032624,-150.0,7.619e-05,2]
[347694750,1736073032633,-150.0,7.619e-05,2]
[347694751,1736073032643,-150.0,7.619e-05,2]
[347694752,1736073032652,-150.0,7.648e-05,2]
[347694753,1736073032662,-150.0,7.654e-05,2]
[347694754,1736073032671,-150.0,7.678e-05,2]
[347694755,1736073032681,-150.0,7.69e-05,2]
[347694756,1736073032693,-1324.97,7.698e-05,2]
[347694757,1736073032703,-150.0,7.704e-05,2]
[347694758,1736073032713,-150.0,7.707e-05,2]
[347694759,1736073032726,-150.0,7.725e-05,2]
[347694760,1736073032737,-150.0,7.736e-05,2]
[347694761,1736073032746,-150.0,7.76e-05,2]
[347694762,1736073032755,-150.0,7.76e-05,2]
[347694763,1736073032764,-300.0,7.761e-05,2]
[347694764,1736073032774,-1585.0,7.762e-05,2]
[347694765,1736073032783,-150.0,7.765e-05,2]
[347694766,1736073032792,-150.0,7.788e-05,2]
[347694767,1736073032802,-150.0,7.794e-05,2]
[347694768,1736073032811,-150.0,7.796e-05,2]
[347694769,1736073032820,-150.0,7.824e-05,2]
[347694770,1736073032829,-504.91473213,7.828e-05,2]
[347694771,1736073032839,-166.7,7.829e-05,2]
[347694772,1736073032852,-150.0,7.831e-05,2]
[347694773,1736073032861,-150.0,7.853e-05,2]
[347694774,1736073032871,-150.0,7.866e-05,2]
[347694775,1736073032880,-150.0,7.873e-05,2]
[347694776,1736073032890,-150.0,7.882e-05,2]
[347694778,1736073032899,-374.44177175,7.888e-05,2]
[347694780,1736073032909,-945.56629561,7.9e-05,2]
[347694782,1736073032918,-150.0,7.901e-05,2]
[347694784,1736073032928,-150.0,7.901e-05,2]
[347694786,1736073032937,-150.0,7.911e-05,2]
[347694788,1736073032946,-150.0,7.937e-05,2]
[347694790,1736073032955,-150.0,7.94e-05,2]
[347694792,1736073032964,-150.0,7.958e-05,2]
[347694793,1736073032974,-150.0,7.969e-05,2]
[347694795,1736073032983,-150.0,7.972e-05,2]
[347694797,1736073032994,-204.28754964,7.973e-05,2]
[347694799,1736073033003,-500.0,7.973e-05,2]
[347694801,1736073033012,-353.31482709,7.973e-05,2]
[347694803,1736073033021,-151.32165021,7.973e-05,2]
[347694805,1736073033030,-206.83727518,7.973e-05,2]
[347694807,1736073033040,-500.0,7.973e-05,2]
[347694809,1736073033049,-500.0,7.973e-05,2]
[347694811,1736073033059,-500.0,7.973e-05,2]
[347694813,1736073033068,-160.68697817,7.973e-05,2]
[347694815,1736073033077,-518.97505343,7.973e-05,2]
[347694817,1736073033087,-305.87758107,7.973e-05,2]
[347694818,1736073033096,-407.50720051,7.973e-05,2]
[347694820,1736073033106,-150.0,7.999e-05,2]
[347694822,1736073033115,-631.43,7.999e-05,2]
[347694824,1736073033125,-500.0,7.999e-05,2]
[347694826,1736073033135,-500.0,7.999e-05,2]
[347694828,1736073033145,-500.0,7.999e-05,2]
[347694830,1736073033154,-500.0,7.999e-05,2]
[347694832,1736073033164,-188.84241874,7.999e-05,2]
[347694834,1736073033173,-500.0,7.999e-05,2]
[347694836,1736073033183,-500.0,7.999e-05,2]
[347694838,1736073033193,-334.9,7.999e-05,2]
[347694839,1736073033202,-10830.79435417,8e-05,2]
[347694842,1736073033215,-39014.69474905,8e-05,2]
[347694844,1736073033234,-705316.08118907,8e-05,2]
[347694849,1736073033271,-16085.0,8e-05,2]
[347694851,1736073033282,-6290.0000001,8e-05,2]
[347694853,1736073033293,-5880.0,8e-05,2]
[347694855,1736073033304,-1360.0,8e-05,2]
[347694970,1736073038397,-9315.63957483,8e-05,2]
[347694971,1736073038408,-581.41795887,8e-05,2]
[347694972,1736073038483,-272.69463329,8e-05,2]
[347694973,1736073038568,-1165.9087451,8e-05,2]
[347694974,1736073038579,-72874.71154269,8e-05,2]
[347694975,1736073038590,-808.26241304,8e-05,2]
[347694976,1736073038607,-5354.12112852,8e-05,2]
[347694977,1736073038619,-1002.2758233,8e-05,2]
[347694982,1736073040452,-1256.66283908,8e-05,2]
[347694983,1736073040471,-746.15870968,8e-05,2]
[347694984,1736073040542,-32060.72078204,8e-05,2]
[347694985,1736073040553,-1937.759995,8e-05,2]
[347694986,1736073040571,-1365.05946044,8e-05,2]
[347694987,1736073040582,-3764.13502429,8e-05,2]
[347694988,1736073040595,-505.8705206,8e-05,2]
[347694989,1736073040606,-961.11165147,8e-05,2]
[347694990,1736073040628,-632.68619699,8e-05,2]
[347694991,1736073040640,-42440.85347287,8e-05,2]
[347694992,1736073040678,-33724.88641675,8e-05,2]
[347694993,1736073040697,-3769.76346924,8e-05,2]
[347694994,1736073040709,-3863.1,8e-05,2]
[347694995,1736073040757,-1671000.67905116,8e-05,2]
[347694996,1736073040766,-150.0,8.007e-05,2]
[347694997,1736073040775,-150.0,8.028e-05,2]
[347694998,1736073040784,-150.0,8.042e-05,2]
[347694999,1736073040797,-150.0,8.042e-05,2]
[347695000,1736073040806,-150.0,8.042e-05,2]
[347695001,1736073040815,-150.0,8.057e-05,2]
[347695002,1736073040824,-150.0,8.078e-05,2]
[347695003,1736073040834,-150.0,8.086e-05,2]
[347695004,1736073040843,-700.0,8.1e-05,5]
[347695005,1736073040852,-185.71,8.109e-05,2]
[347695006,1736073040860,-150.0,8.113e-05,2]
[347695007,1736073040869,-150.0,8.115e-05,2]
[347695008,1736073040879,-150.0,8.127e-05,2]
[347695009,1736073040890,-631.43,8.136e-05,2]
[347695010,1736073040900,-150.0,8.145e-05,2]
[347695011,1736073040909,-150.0,8.148e-05,2]
[347695012,1736073040919,-150.0,8.174e-05,2]
[347695013,1736073040929,-371.536828,8.178e-05,2]
[347695014,1736073040940,-150.0,8.184e-05,2]
[347695015,1736073040950,-150.0,8.184e-05,2]
[347695016,1736073040960,-150.0,8.203e-05,2]
[347695017,1736073040971,-150.0,8.212e-05,2]
[347695018,1736073040982,-150.0,8.219e-05,2]
[347695019,1736073040992,-500.0,8.219e-05,2]
[347695020,1736073041002,-500.0,8.219e-05,2]
[347695021,1736073041013,-817.29,8.219e-05,2]
[347695022,1736073041024,-614.10131409,8.219e-05,2]
[347695023,1736073041034,-500.0,8.219e-05,2]
[347695024,1736073041044,-500.0,8.219e-05,2]
[347695025,1736073041055,-500.0,8.219e-05,2]
[347695026,1736073041064,-500.0,8.219e-05,2]
[347695027,1736073041074,-500.0,8.219e-05,2]
[347695028,1736073041085,-500.0,8.219e-05,2]
[347695029,1736073041096,-500.0,8.219e-05,2]
[347695030,1736073041106,-500.0,8.219e-05,2]
[347695031,1736073041116,-511.28,8.219e-05,2]
[347695032,1736073041126,-500.0,8.219e-05,2]
[347695033,1736073041136,-500.0,8.219e-05,2]
[347695034,1736073041145,-500.0,8.219e-05,2]
[347695035,1736073041155,-500.0,8.219e-05,2]
[347695036,1736073041166,-500.0,8.219e-05,2]
[347695037,1736073041177,-500.0,8.219e-05,2]
[347695038,1736073041188,-500.0,8.219e-05,2]
[347695039,1736073041200,-500.0,8.219e-05,2]
[347695040,1736073041211,-500.0,8.219e-05,2]
[347695041,1736073041224,-500.0,8.219e-05,2]
[347695042,1736073041235,-500.0,8.219e-05,2]
[347695043,1736073041245,-500.0,8.219e-05,2]
[347695044,1736073041254,-500.0,8.219e-05,2]
[347695045,1736073041263,-500.0,8.219e-05,2]
[347695046,1736073041273,-500.0,8.219e-05,2]
[347695047,1736073041283,-500.0,8.219e-05,2]
[347695048,1736073041293,-649.27,8.219e-05,2]
[347695049,1736073041305,-500.0,8.219e-05,2]
[347695050,1736073041315,-500.0,8.219e-05,2]
[347695051,1736073041325,-500.0,8.219e-05,2]
[347695052,1736073041336,-500.0,8.219e-05,2]
[347695053,1736073041346,-327.07745922,8.219e-05,2]
[347695054,1736073041356,-831.44,8.219e-05,2]
[347695055,1736073041366,-500.0,8.219e-05,2]
[347695056,1736073041376,-500.0,8.219e-05,2]
[347695057,1736073041385,-500.0,8.219e-05,2]
[347695058,1736073041394,-500.0,8.219e-05,2]
[347695059,1736073041405,-500.0,8.219e-05,2]
[347695060,1736073041415,-500.0,8.219e-05,2]
[347695061,1736073041428,-500.0,8.219e-05,2]
[347695062,1736073041438,-500.0,8.219e-05,2]
[347695063,1736073041449,-500.0,8.219e-05,2]
[347695064,1736073041458,-500.0,8.219e-05,2]
[347695065,1736073041469,-500.0,8.219e-05,2]
[347695066,1736073041480,-500.0,8.219e-05,2]
[347695067,1736073041492,-500.0,8.219e-05,2]
[347695068,1736073041501,-500.0,8.219e-05,2]
[347695069,1736073041511,-500.0,8.219e-05,2]
[347695070,1736073041520,-500.0,8.219e-05,2]
[347695071,1736073041529,-500.0,8.219e-05,2]
[347695072,1736073041539,-500.0,8.219e-05,2]
[347695073,1736073041549,-821.89,8.219e-05,2]
[347695074,1736073041559,-500.0,8.219e-05,2]
[347695075,1736073041568,-500.0,8.219e-05,2]
[347695076,1736073041577,-500.0,8.219e-05,2]
[347695077,1736073041587,-500.0,8.219e-05,2]
[347695078,1736073041596,-500.0,8.219e-05,2]
[347695079,1736073041605,-500.0,8.219e-05,2]
[347695080,1736073041617,-500.0,8.219e-05,2]
[347695081,1736073041627,-500.0,8.219e-05,2]
[347695082,1736073041638,-500.0,8.219e-05,2]
[347695083,1736073041647,-500.0,8.219e-05,2]
[347695084,1736073041658,-500.0,8.219e-05,2]
[347695085,1736073041668,-500.0,8.219e-05,2]
[347695086,1736073041678,-634.54,8.219e-05,2]
[347695087,1736073041688,-500.0,8.219e-05,2]
[347695088,1736073041698,-500.0,8.219e-05,2]
[347695089,1736073041708,-500.0,8.219e-05,2]
[347695090,1736073041717,-500.0,8.219e-05,2]
[347695091,1736073041728,-500.0,8.219e-05,2]
[347695092,1736073041737,-500.0,8.219e-05,2]
[347695093,1736073041746,-500.0,8.219e-05,2]
[347695094,1736073041755,-500.0,8.219e-05,2]
[347695095,1736073041764,-500.0,8.219e-05,2]
[347695096,1736073041773,-500.0,8.219e-05,2]
[347695097,1736073041783,-500.0,8.219e-05,2]
[347695098,1736073041793,-500.0,8.219e-05,2]
[347695099,1736073041802,-500.0,8.219e-05,2]
[347695100,1736073041811,-500.0,8.219e-05,2]
[347695101,1736073041821,-500.0,8.219e-05,2]
[347695102,1736073041830,-500.0,8.219e-05,2]
[347695103,1736073041839,-500.0,8.219e-05,2]
[347695104,1736073041848,-501.99,8.219e-05,2]
[347695105,1736073041857,-500.0,8.219e-05,2]
[347695106,1736073041867,-500.0,8.219e-05,2]
[347695107,1736073041877,-500.0,8.219e-05,2]
[347695108,1736073041886,-500.0,8.219e-05,2]
[347695109,1736073041895,-500.0,8.219e-05,2]
[347695110,1736073041904,-500.0,8.219e-05,2]
[347695111,1736073041913,-500.0,8.219e-05,2]
[347695112,1736073041922,-649.35,8.219e-05,2]
[347695113,1736073041931,-500.0,8.219e-05,2]
[347695114,1736073041940,-500.0,8.219e-05,2]
[347695115,1736073041949,-500.0,8.219e-05,2]
[347695116,1736073041958,-500.0,8.219e-05,2]
[347695117,1736073041968,-500.0,8.219e-05,2]
[347695118,1736073041977,-500.0,8.219e-05,2]
[347695119,1736073041987,-500.0,8.219e-05,2]
[347695120,1736073041996,-744.43,8.219e-05,2]
[347695121,1736073042005,-500.0,8.219e-05,2]
[347695122,1736073042015,-500.0,8.219e-05,2]
[347695123,1736073042024,-191.18021797,8.219e-05,2]
[347695124,1736073042034,-500.0,8.219e-05,2]
[347695125,1736073042043,-500.0,8.219e-05,2]
[347695126,1736073042052,-500.0,8.219e-05,2]
[347695127,1736073042061,-500.0,8.219e-05,2]
[347695128,1736073042070,-500.0,8.219e-05,2]
[347695129,1736073042236,-500.0,8.219e-05,2]
[347695130,1736073042246,-500.0,8.219e-05,2]
[347695131,1736073042254,-500.0,8.219e-05,2]
[347695132,1736073042263,-500.0,8.219e-05,2]
[347695133,1736073042272,-500.0,8.219e-05,2]
[347695134,1736073042282,-500.0,8.219e-05,2]
[347695135,1736073042292,-500.0,8.219e-05,2]
[347695136,1736073042302,-500.0,8.219e-05,2]
[347695137,1736073042311,-500.0,8.219e-05,2]
[347695138,1736073042320,-500.0,8.219e-05,2]
[347695139,1736073042331,-500.0,8.219e-05,2]
[347695140,1736073042341,-500.0,8.219e-05,2]
[347695141,1736073042350,-500.0,8.219e-05,2]
[347695142,1736073042359,-500.0,8.219e-05,2]
[347695143,1736073042368,-500.0,8.219e-05,2]
[347695144,1736073042377,-500.0,8.219e-05,2]
[347695145,1736073042386,-500.0,8.219e-05,2]
[347695146,1736073042395,-500.0,8.219e-05,2]
[347695147,1736073042404,-500.0,8.219e-05,2]
[347695148,1736073042412,-500.0,8.219e-05,2]
[347695149,1736073042422,-500.0,8.219e-05,2]
[347695150,1736073042431,-500.0,8.219e-05,2]
[347695151,1736073042440,-500.0,8.219e-05,2]
[347695152,1736073042450,-500.0,8.219e-05,2]
[347695153,1736073042459,-500.0,8.219e-05,2]
[347695154,1736073042469,-500.0,8.219e-05,2]
[347695155,1736073042478,-500.0,8.219e-05,2]
[347695156,1736073042487,-500.0,8.219e-05,2]
[347695157,1736073042496,-500.0,8.219e-05,2]
[347695158,1736073042505,-443.29758172,8.219e-05,2]
[347695159,1736073042515,-500.0,8.219e-05,2]
[347695160,1736073042524,-782.15,8.219e-05,2]
[347695161,1736073042533,-500.0,8.219e-05,2]
[347695162,1736073042542,-500.0,8.219e-05,2]
[347695163,1736073042552,-500.0,8.219e-05,2]
[347695164,1736073042561,-534.18,8.219e-05,2]
[347695165,1736073042571,-500.0,8.219e-05,2]
[347695166,1736073042580,-500.0,8.219e-05,2]
[347695167,1736073042589,-911.54,8.219e-05,2]
[347695168,1736073042599,-500.0,8.219e-05,2]
[347695169,1736073042608,-500.0,8.219e-05,2]
[347695170,1736073042622,-388.88562344,8.219e-05,2]
[347695171,1736073042631,-517.22553754,8.219e-05,2]
[347695172,1736073042641,-500.0,8.219e-05,2]
[347695173,1736073042650,-500.0,8.219e-05,2]
[347695174,1736073042660,-1041.87,8.219e-05,2]
[347695175,1736073042669,-500.0,8.219e-05,2]
[347695176,1736073042678,-500.0,8.219e-05,2]
[347695177,1736073042687,-500.0,8.219e-05,2]
[347695178,1736073042697,-500.0,8.219e-05,2]
[347695179,1736073042708,-500.0,8.219e-05,2]
[347695180,1736073042717,-673.47,8.219e-05,2]
[347695181,1736073042727,-500.0,8.219e-05,2]
[347695182,1736073042737,-500.0,8.219e-05,2]
[347695183,1736073042747,-500.0,8.219e-05,2]
[347695184,1736073042756,-500.0,8.219e-05,2]
[347695185,1736073042764,-500.0,8.219e-05,2]
[347695186,1736073042774,-500.0,8.219e-05,2]
[347695187,1736073042784,-1486.24,8.219e-05,2]
[347695188,1736073042793,-500.0,8.219e-05,2]
[347695189,1736073042802,-500.0,8.219e-05,2]
[347695190,1736073042811,-500.0,8.219e-05,2]
[347695191,1736073042821,-764.66,8.219e-05,2]
[347695192,1736073042830,-500.0,8.219e-05,2]
[347695193,1736073042839,-500.0,8.219e-05,2]
[347695194,1736073042848,-500.0,8.219e-05,2]
[347695195,1736073042858,-500.0,8.219e-05,2]
[347695196,1736073042867,-500.0,8.219e-05,2]
[347695197,1736073042875,-500.0,8.219e-05,2]
[347695198,1736073042885,-500.0,8.219e-05,2]
[347695199,1736073042894,-500.0,8.219e-05,2]
[347695200,1736073042903,-500.0,8.219e-05,2]
[347695201,1736073042912,-500.0,8.219e-05,2]
[347695202,1736073042921,-500.0,8.219e-05,2]
[347695203,1736073042930,-500.0,8.219e-05,2]
[347695204,1736073042939,-500.0,8.219e-05,2]
[347695205,1736073042948,-500.0,8.219e-05,2]
[347695206,1736073042957,-1178.21,8.219e-05,2]
[347695207,1736073042966,-500.0,8.219e-05,2]
[347695208,1736073042975,-500.0,8.219e-05,2]
[347695209,1736073042984,-500.0,8.219e-05,2]
[347695210,1736073042993,-500.0,8.219e-05,2]
[347695211,1736073043002,-725.21,8.219e-05,2]
[347695212,1736073043011,-500.0,8.219e-05,2]
[347695213,1736073043021,-515.39,8.219e-05,2]
[347695214,1736073043030,-500.0,8.219e-05,2]
[347695215,1736073043039,-500.0,8.219e-05,2]
[347695216,1736073043047,-500.0,8.219e-05,2]
[347695217,1736073043056,-2078.88,8.219e-05,2]
[347695218,1736073043065,-500.0,8.219e-05,2]
[347695219,1736073043074,-500.0,8.219e-05,2]
[347695220,1736073043083,-500.0,8.219e-05,2]
[347695221,1736073043092,-500.0,8.219e-05,2]
[347695222,1736073043101,-501.64,8.219e-05,2]
[347695223,1736073043110,-500.0,8.219e-05,2]
[347695224,1736073043119,-500.0,8.219e-05,2]
[347695225,1736073043129,-500.0,8.219e-05,2]
[347695226,1736073043138,-500.0,8.219e-05,2]
[347695227,1736073043147,-500.0,8.219e-05,2]
[347695228,1736073043156,-1137.07,8.219e-05,2]
[347695229,1736073043165,-500.0,8.219e-05,2]
[347695230,1736073043175,-500.0,8.219e-05,2]
[347695231,1736073043186,-500.0,8.219e-05,2]
[347695232,1736073043195,-500.0,8.219e-05,2]
[347695233,1736073043204,-500.0,8.219e-05,2]
[347695234,1736073043213,-784.28,8.219e-05,2]
[347695235,1736073043222,-500.0,8.219e-05,2]
[347695236,1736073043231,-1137.42,8.219e-05,2]
[347695237,1736073043241,-1588.7,8.219e-05,2]
[347695239,1736073043251,-524.3,8.219e-05,2]
[347695240,1736073043261,-500.0,8.219e-05,2]
[347695241,1736073043269,-500.0,8.219e-05,2]
[347695242,1736073043278,-438.8041453,8.219e-05,2]
[347695243,1736073043287,-538.99,8.219e-05,2]
[347695244,1736073043297,-860.54,8.219e-05,2]
[347695245,1736073043307,-852.42,8.219e-05,2]
[347695246,1736073043316,-500.0,8.219e-05,2]
[347695247,1736073043326,-500.0,8.219e-05,2]
[347695248,1736073043335,-500.0,8.219e-05,2]
[347695249,1736073043345,-500.0,8.219e-05,2]
[347695250,1736073043355,-843.67,8.219e-05,2]
[347695251,1736073043364,-500.0,8.219e-05,2]
[347695252,1736073043373,-500.0,8.219e-05,2]
[347695253,1736073043383,-500.0,8.219e-05,2]
[347695254,1736073043392,-522.78,8.219e-05,2]
[347695255,1736073043401,-500.0,8.219e-05,2]
[347695256,1736073043411,-500.0,8.219e-05,2]
[347695257,1736073043421,-500.0,8.219e-05,2]
[347695258,1736073043431,-500.0,8.219e-05,2]
[347695259,1736073043441,-500.0,8.219e-05,2]
[347695260,1736073043450,-500.0,8.219e-05,2]
[347695261,1736073043460,-500.0,8.219e-05,2]
[347695262,1736073043469,-500.0,8.219e-05,2]
[347695263,1736073043478,-500.0,8.219e-05,2]
[347695264,1736073043487,-500.0,8.219e-05,2]
[347695265,1736073043497,-803.57,8.219e-05,2]
[347695266,1736073043507,-500.0,8.219e-05,2]
[347695267,1736073043516,-500.0,8.219e-05,2]
[347695268,1736073043525,-862.09,8.219e-05,2]
[347695269,1736073043535,-938.47,8.219e-05,2]
[347695270,1736073043544,-500.0,8.219e-05,2]
[347695271,1736073043553,-500.0,8.219e-05,2]
[347695272,1736073043562,-500.0,8.219e-05,2]
[347695273,1736073043572,-500.0,8.219e-05,2]
[347695274,1736073043582,-500.0,8.219e-05,2]
[347695275,1736073043591,-500.0,8.219e-05,2]
[347695276,1736073043600,-500.0,8.219e-05,2]
[347695277,1736073043610,-500.0,8.219e-05,2]
[347695278,1736073043623,-500.0,8.219e-05,2]
[347695279,1736073043632,-500.0,8.219e-05,2]
[347695280,1736073043641,-500.0,8.219e-05,2]
[347695281,1736073043651,-500.0,8.219e-05,2]
[347695282,1736073043661,-500.0,8.219e-05,2]
[347695283,1736073043670,-500.0,8.219e-05,2]
[347695284,1736073043679,-500.0,8.219e-05,2]
[347695285,1736073043689,-500.0,8.219e-05,2]
[347695286,1736073043698,-500.0,8.219e-05,2]
[347695287,1736073043707,-500.0,8.219e-05,2]
[347695288,1736073043717,-500.0,8.219e-05,2]
[347695289,1736073043727,-500.0,8.219e-05,2]
[347695290,1736073043736,-500.0,8.219e-05,2]
[347695291,1736073043746,-1559.17,8.219e-05,2]
[347695292,1736073043755,-500.0,8.219e-05,2]
[347695293,1736073043764,-500.0,8.219e-05,2]
[347695294,1736073043774,-500.0,8.219e-05,2]
[347695295,1736073043783,-500.0,8.219e-05,2]
[347695296,1736073043793,-500.0,8.219e-05,2]
[347695297,1736073043802,-500.0,8.219e-05,2]
[347695298,1736073043811,-521.81,8.219e-05,2]
[347695299,1736073043820,-500.0,8.219e-05,2]
[347695300,1736073043830,-500.0,8.219e-05,2]
[347695301,1736073043840,-500.0,8.219e-05,2]
[347695302,1736073043853,-713.73,8.219e-05,2]
[347695303,1736073043863,-500.0,8.219e-05,2]
[347695304,1736073043874,-391.25837368,8.219e-05,2]
[347695305,1736073043884,-500.0,8.219e-05,2]
[347695306,1736073043893,-500.0,8.219e-05,2]
[347695307,1736073043902,-500.0,8.219e-05,2]
[347695308,1736073043911,-500.0,8.219e-05,2]
[347695309,1736073043920,-500.0,8.219e-05,2]
[347695310,1736073043930,-708.64,8.219e-05,2]
[347695311,1736073043939,-500.0,8.219e-05,2]
[347695312,1736073043949,-1654.63,8.219e-05,2]
[347695313,1736073043959,-500.0,8.219e-05,2]
[347695314,1736073043968,-500.0,8.219e-05,2]
[347695315,1736073043978,-500.0,8.219e-05,2]
[347695316,1736073043987,-500.0,8.219e-05,2]
[347695317,1736073043997,-500.0,8.219e-05,2]
[347695318,1736073044006,-500.0,8.219e-05,2]
[347695319,1736073044015,-500.0,8.219e-05,2]
[347695320,1736073044024,-500.0,8.219e-05,2]
[347695321,1736073044033,-500.0,8.219e-05,2]
[347695322,1736073044043,-500.0,8.219e-05,2]
[347695323,1736073044052,-747.18,8.219e-05,2]
[347695324,1736073044062,-500.0,8.219e-05,2]
[347695325,1736073044072,-500.0,8.219e-05,2]
[347695326,1736073044081,-1755.13,8.219e-05,2]
[347695327,1736073044091,-500.0,8.219e-05,2]
[347695328,1736073044100,-500.0,8.219e-05,2]
[347695329,1736073044109,-500.0,8.219e-05,2]
[347695330,1736073044118,-500.0,8.219e-05,2]
[347695331,1736073044127,-500.0,8.219e-05,2]
[347695332,1736073044136,-500.0,8.219e-05,2]
[347695333,1736073044146,-500.0,8.219e-05,2]
[347695334,1736073044155,-500.0,8.219e-05,2]
[347695335,1736073044164,-591.8,8.219e-05,2]
[347695337,1736073044174,-1733.2,8.219e-05,2]
[347695338,1736073044183,-500.0,8.219e-05,2]
[347695340,1736073044191,-500.0,8.219e-05,2]
[347695341,1736073044200,-500.0,8.219e-05,2]
[347695343,1736073044210,-500.0,8.219e-05,2]
[347695345,1736073044219,-500.0,8.219e-05,2]
[347695347,1736073044228,-500.0,8.219e-05,2]
[347695349,1736073044238,-778.03,8.219e-05,2]
[347695350,1736073044247,-500.0,8.219e-05,2]
[347695351,1736073044256,-500.0,8.219e-05,2]